bitfinex/quotes_SOLUSD_20220306
["timestamp","ask_amount","ask_price","bid_price","bid_amount"]
[1646570639972,1.55887164,87.102,87.091,60.17116027]
[1646570640174,1.55887164,87.103,87.091,63.00729553]
[1646570640372,1.55887164,87.103,87.092,2.83613526]
[1646570640574,1.55887164,87.112,87.1,17.2238]
[1646570640774,1.55887164,87.106,87.1,17.2238]
[1646570641073,1.55887164,87.106,87.101,2.83613526]
[1646570641892,1.55887164,87.105,87.101,2.83613526]
[1646570643093,1.55887164,87.104,87.101,2.83613526]
[1646570643293,1.55887164,87.104,87.101,20.02613526]
[1646570643494,3.11954161,87.126,87.101,20.02613526]
[1646570643693,3.11954161,87.126,87.11,17.2238]
[1646570645298,4.161e-05,87.126,87.111,2.83613526]
[1646570645496,1.5657499,87.122,87.111,2.83613526]
[1646570646197,1.5657499,87.123,87.112,60.93059202]
[1646570646697,1.5657499,87.123,87.113,2.83613526]
[1646570646897,1.56561054,87.124,87.115,114.7]
[1646570647098,6.27895097,87.17,87.121,114.7]
[1646570647499,6.27895097,87.185,87.122,17.94577233]
[1646570647699,6.27895097,87.185,87.123,114.7]
[1646570647897,62.36799182,87.184,87.123,117.53613526]
[1646570648098,62.36799182,87.184,87.13,17.2172]
[1646570648298,6.27895097,87.183,87.131,172.15830324]
[1646570648499,6.27895097,87.183,87.131,174.9944385]
[1646570648698,6.27895097,87.183,87.131,172.15830324]
[1646570648899,6.27895097,87.183,87.132,2.83613526]
[1646570649298,6.27895097,87.183,87.175,0.2]
[1646570649506,0.17646169,87.162,87.132,2.83613526]
[1646570649901,0.17646169,87.162,87.123,17.3315]
[1646570650301,0.17646169,87.162,87.125,2.83613526]
[1646570652301,0.17646169,87.162,87.13,17.2199]
[1646570652809,0.17646169,87.162,87.131,2.83613526]
[1646570653203,0.17646169,87.162,87.121,2.83613526]
[1646570653403,0.17646169,87.162,87.111,2.83613526]
[1646570654009,17.2304,87.16,87.092,2.83613526]
[1646570654211,35.96925405,87.159,87.092,2.83613526]
[1646570654404,6.27885405,87.158,87.082,2.83613526]
[1646570654605,5.739,87.157,87.082,2.83613526]
[1646570654903,6.27885405,87.156,87.082,2.83613526]
[1646570655105,64.32940845,87.155,87.082,2.83613526]
[1646570655308,64.32940845,87.155,87.09,17.2281]
[1646570655507,6.27885405,87.154,87.09,17.2281]
[1646570655705,5.739,87.153,87.09,20.06423526]
[1646570655905,6.27885405,87.152,87.09,2.83613526]
[1646570656109,5.739,87.151,87.09,2.83613526]
[1646570656305,6.27885405,87.15,87.09,2.83613526]
[1646570656504,5.739,87.149,87.09,2.83613526]
[1646570656704,5.739,87.149,87.091,5.739]
[1646570656907,6.27885405,87.148,87.091,5.739]
[1646570657104,5.739,87.147,87.092,2.83613526]
[1646570657304,6.27885405,87.146,87.092,2.83613526]
[1646570657507,5.739,87.145,87.092,2.83613526]
[1646570657705,6.27885405,87.144,87.092,2.83613526]
[1646570657908,5.739,87.143,87.092,2.83613526]
[1646570658108,17.2342,87.14,87.092,2.83613526]
[1646570658307,12.01785405,87.139,87.081,2.83613526]
[1646570658507,6.27885405,87.138,87.081,2.83613526]
[1646570658708,5.739,87.137,87.081,2.83613526]
[1646570659210,6.27885405,87.136,87.082,62.06245457]
[1646570659407,6.27885405,87.138,87.082,62.06245457]
[1646570659608,6.27885405,87.138,87.083,2.83613526]
[1646570662212,5.739,87.137,87.083,2.83613526]
[1646570662413,6.27885405,87.136,87.083,2.83613526]
[1646570662611,5.739,87.135,87.083,2.83613526]
[1646570662812,6.27885405,87.134,87.083,2.83613526]
[1646570663014,114.7,87.132,87.083,2.83613526]
[1646570663213,23.2939,87.139,87.071,5.739]
[1646570663214,126.71885405,87.131,87.071,8.57513526]
[1646570663413,6.27885405,87.13,87.071,2.83613526]
[1646570663613,5.74,87.129,87.071,2.83613526]
[1646570663813,6.27885405,87.128,87.07,17.5176]
[1646570664012,28.4092,87.127,87.07,17.5176]
[1646570664222,63.4329212,87.126,87.07,17.5176]
[1646570664414,5.74,87.125,87.07,17.5176]
[1646570664614,12.01885405,87.125,87.07,17.5176]
[1646570664816,12.01885405,87.125,87.061,2.83613526]
[1646570664817,114.7,87.123,87.061,2.83613526]
[1646570665016,114.7,87.119,87.055,5.74]
[1646570665214,115.12341566,87.117,87.049,5.74]
[1646570665414,114.7,87.115,87.048,2.83613526]
[1646570665718,114.7,87.113,87.041,23.76363629]
[1646570665914,114.7,87.111,87.042,2.83613526]
[1646570666114,114.7,87.109,87.042,2.83613526]
[1646570666314,114.7,87.107,87.042,2.83613526]
[1646570666514,114.7,87.105,87.042,2.83613526]
[1646570666714,114.7,87.103,87.042,2.83613526]
[1646570666915,114.7,87.101,87.042,2.83613526]
[1646570667114,62.84938292,87.099,87.042,2.83613526]
[1646570667314,5.742,87.098,87.042,2.83613526]
[1646570672622,5.742,87.098,87.043,23.76363629]
[1646570672823,5.742,87.099,87.044,114.7]
[1646570673022,30.4504,87.124,87.045,5.742]
[1646570673222,24.7084,87.124,87.045,29.50563629]
[1646570673426,5.74,87.123,87.046,25.21937869]
[1646570673624,51.97476598,87.122,87.05,17.2355]
[1646570673824,5.74,87.121,87.05,17.2355]
[1646570674023,5.74,87.121,87.051,23.76363629]
[1646570674226,5.74,87.121,87.051,26.59977155]
[1646570674524,51.97476598,87.122,87.052,32.33977155]
[1646570674925,51.97476598,87.122,87.053,26.59977155]
[1646570675126,51.97476598,87.122,87.054,70.31795937]
[1646570675326,51.97476598,87.122,87.054,73.15409463]
[1646570675543,51.97476598,87.122,87.054,96.91773092]
[1646570675744,51.97476598,87.122,87.055,2.83613526]
[1646570675949,51.97476598,87.122,87.056,5.74]
[1646570676146,51.97476598,87.122,87.06,17.2321]
[1646570676351,51.97476598,87.122,87.061,5.74]
[1646570676847,51.97476598,87.122,87.061,8.57613526]
[1646570677045,51.97476598,87.122,87.062,2.83613526]
[1646570677246,51.97476598,87.122,87.063,5.74]
[1646570677545,51.97476598,87.122,87.064,2.83613526]
[1646570677746,5.74,87.121,87.065,5.74]
[1646570678147,5.74,87.121,87.066,2.83613526]
[1646570678849,5.74,87.121,87.07,17.2315]
[1646570679249,5.74,87.121,87.071,2.83613526]
[1646570679451,5.74,87.121,87.071,117.53613526]
[1646570679650,5.74,87.148,87.072,29.50363629]
[1646570679849,28.593,87.148,87.072,81.02295024]
[1646570680051,6.2800292,87.147,87.08,17.2294]
[1646570680251,5.739,87.146,87.08,17.2294]
[1646570680452,55.08801858,87.145,87.081,65.27780719]
[1646570680652,5.739,87.144,87.081,65.27780719]
[1646570680851,5.739,87.144,87.082,2.83613526]
[1646570681052,6.28005157,87.143,87.082,2.83613526]
[1646570681255,5.739,87.142,87.082,2.83613526]
[1646570681453,6.28005157,87.143,87.09,17.2276]
[1646570681653,6.28005157,87.141,87.09,17.2276]
[1646570681853,6.28005157,87.144,87.091,2.83613526]
[1646570682054,55.08801858,87.145,87.091,2.83613526]
[1646570682254,6.28004413,87.144,87.091,2.83613526]
[1646570682655,6.28004413,87.144,87.1,17.2256]
[1646570682957,6.28004413,87.144,87.101,2.83613526]
[1646570686361,6.28004413,87.144,87.1,34.7904]
[1646570686659,5.739,87.143,87.1,34.7904]
[1646570687060,6.28004413,87.142,87.1,34.7904]
[1646570687259,5.739,87.141,87.1,34.7904]
[1646570687461,6.28004413,87.14,87.1,34.7904]
[1646570687862,6.28004413,87.143,87.1,34.7904]
[1646570688065,5.739,87.142,87.1,34.7904]
[1646570688263,6.28004413,87.141,87.1,34.7904]
[1646570688464,5.739,87.14,87.101,2.83613526]
[1646570688663,5.739,87.144,87.101,2.83613526]
[1646570688866,6.27969286,87.143,87.101,2.83613526]
[1646570689164,5.739,87.142,87.101,2.83613526]
[1646570689566,5.739,87.144,87.101,2.83613526]
[1646570689766,6.27967913,87.143,87.101,2.83613526]
[1646570690065,5.739,87.142,87.101,2.83613526]
[1646570690467,5.739,87.144,87.101,2.83613526]
[1646570691375,5.739,87.144,87.11,17.2237]
[1646570691568,23.6221,87.168,87.11,17.2237]
[1646570691766,6.2785177,87.161,87.111,2.83613526]
[1646570692368,61.52659391,87.16,87.112,60.48469823]
[1646570692767,61.52659391,87.16,87.113,2.83613526]
[1646570693167,61.52659391,87.16,87.12,17.2211]
[1646570693566,61.52659391,87.16,87.121,2.83613526]
[1646570694267,23.6221,87.168,87.13,17.2193]
[1646570694470,5.737,87.195,87.13,17.2193]
[1646570694669,5.737,87.195,87.131,2.83613526]
[1646570694872,5.737,87.197,87.131,2.83613526]
[1646570695269,52.98895782,87.196,87.131,2.83613526]
[1646570695470,5.737,87.195,87.131,2.83613526]
[1646570695870,5.737,87.195,87.14,17.2176]
[1646570696071,5.737,87.195,87.141,49.71990657]
[1646570696271,5.737,87.195,87.141,52.55604183]
[1646570696474,52.98895782,87.196,87.141,52.55604183]
[1646570696770,52.98895782,87.196,87.142,2.83613526]
[1646570697171,52.98895782,87.196,87.15,17.2129]
[1646570697572,52.98895782,87.196,87.142,2.83613526]
[1646570697774,52.98895782,87.196,87.131,19.74293526]
[1646570697987,5.737,87.195,87.131,2.83613526]
[1646570698272,131.9242,87.19,87.101,2.83613526]
[1646570698472,5.738,87.189,87.101,26.68303526]
[1646570698672,5.738,87.189,87.102,57.97165368]
[1646570698875,5.738,87.189,87.102,60.80778894]
[1646570699078,114.7,87.188,87.103,2.83613526]
[1646570699276,114.7,87.186,87.103,2.83613526]
[1646570699476,114.7,87.184,87.103,2.83613526]
[1646570699676,114.7,87.182,87.087,2.83613526]
[1646570699878,114.7,87.16,87.087,2.83613526]
[1646570700080,114.7,87.158,87.087,2.83613526]
[1646570700275,12.01814368,87.157,87.087,19.62443526]
[1646570700476,59.82471759,87.156,87.087,19.62443526]
[1646570700677,5.739,87.155,87.087,2.83613526]
[1646570700876,12.01814368,87.155,87.087,2.83613526]
[1646570701076,12.01814368,87.155,87.09,17.2284]
[1646570701279,6.27914368,87.154,87.09,17.2284]
[1646570701476,5.739,87.153,87.091,52.11078357]
[1646570701679,59.82471759,87.156,87.091,52.11078357]
[1646570701899,59.82471759,87.156,87.092,52.11078357]
[1646570702101,6.27910078,87.155,87.092,52.11078357]
[1646570702302,6.27910078,87.155,87.1,17.2268]
[1646570702803,6.27910078,87.155,87.101,2.83613526]
[1646570703702,6.27910078,87.155,87.11,17.2249]
[1646570703905,6.27910078,87.155,87.111,55.26621192]
[1646570704102,59.82471759,87.156,87.111,58.10234718]
[1646570704305,59.82471759,87.156,87.112,2.83613526]
[1646570708109,5.738,87.161,87.112,2.83613526]
[1646570708509,6.27822706,87.16,87.112,2.83613526]
[1646570708709,5.738,87.159,87.112,2.83613526]
[1646570709108,62.64886033,87.158,87.112,2.83613526]
[1646570710609,6.27829264,87.157,87.112,2.83613526]
[1646570711910,62.64886033,87.158,87.112,2.83613526]
[1646570712111,6.27828049,87.157,87.112,2.83613526]
[1646570712311,5.738,87.156,87.112,2.83613526]
[1646570712510,120.97828049,87.155,87.112,1.5132899]
[1646570712710,114.7,87.153,87.093,2.83613526]
[1646570712909,114.7,87.151,87.093,2.83613526]
[1646570713110,114.7,87.149,87.071,51.65778263]
[1646570713309,114.7,87.147,87.071,51.65778263]
[1646570713511,114.7,87.145,87.071,51.65778263]
[1646570713708,114.7,87.143,87.071,51.65778263]
[1646570713910,114.7,87.141,87.071,51.65778263]
[1646570714109,126.71728049,87.14,87.071,51.65778263]
[1646570714308,6.27828049,87.139,87.065,16.814]
[1646570714510,120.439,87.138,87.065,16.814]
[1646570714912,114.7,87.136,87.065,16.814]
[1646570715113,114.7,87.134,87.065,16.814]
[1646570715310,63.81400007,87.131,87.067,50.56590103]
[1646570715510,126.71828049,87.13,87.067,50.56590103]
[1646570715709,126.71828049,87.13,87.06,17.234]
[1646570715910,114.7,87.128,87.06,34.1976]
[1646570716111,114.7,87.126,87.06,34.1976]
[1646570716310,63.81400007,87.131,87.06,34.1976]
[1646570716311,114.7,87.124,87.06,34.1976]
[1646570716513,114.7,87.122,87.06,34.1976]
[1646570716712,114.7,87.12,87.061,48.63707527]
[1646570716911,5.74,87.119,87.061,48.63707527]
[1646570717312,5.74,87.129,87.061,48.63707527]
[1646570717514,6.28101632,87.128,87.061,48.63707527]
[1646570717712,5.74,87.127,87.061,48.63707527]
[1646570717912,6.28101632,87.126,87.061,48.63707527]
[1646570718113,5.74,87.125,87.061,48.63707527]
[1646570718312,6.28101632,87.124,87.061,48.63707527]
[1646570718512,29.09821632,87.124,87.061,48.63707527]
[1646570718712,6.28101632,87.123,87.061,48.63707527]
[1646570718913,114.7,87.122,87.06,16.9636]
[1646570719112,114.7,87.12,87.06,16.9636]
[1646570719514,114.7,87.118,87.06,16.76361372]
[1646570719715,5.74,87.117,87.06,16.76361372]
[1646570719915,5.74,87.117,87.061,57.26170279]
[1646570720120,5.74,87.117,87.061,81.02533908]
[1646570720517,22.8172,87.124,87.061,81.02533908]
[1646570720718,6.28124866,87.123,87.061,81.02533908]
[1646570720918,6.28124866,87.123,87.062,23.76363629]
[1646570721323,22.8172,87.124,87.062,23.76363629]
[1646570722317,5.74,87.123,87.062,23.76363629]
[1646570723019,114.7,87.122,87.062,23.76363629]
[1646570723222,114.7,87.12,87.062,23.76363629]
[1646570723422,5.74,87.119,87.062,23.76363629]
[1646570723823,114.7,87.118,87.049,23.76363629]
[1646570724024,0.42460874,87.115,87.032,14.45832374]
[1646570724224,0.42460874,87.115,87.029,50.21465136]
[1646570724225,17.2415,87.11,87.029,2.83613526]
[1646570724424,0.44128801,87.108,87.02,24.3514]
[1646570724723,0.44128801,87.105,87.02,24.3514]
[1646570724924,114.7,87.103,87.02,24.3514]
[1646570725225,114.7,87.099,87.021,23.76363629]
[1646570725429,114.7,87.089,87.021,23.76363629]
[1646570725625,114.7,87.089,87.01,17.6187]
[1646570725626,68.81,87.082,87.01,17.6187]
[1646570725824,5.20062932,87.072,87.01,17.6187]
[1646570726024,114.7,87.07,86.993,23.76363629]
[1646570726226,0.48217613,87.069,86.993,23.76363629]
[1646570726424,55.04745669,87.066,86.993,23.76363629]
[1646570726724,120.444,87.065,86.993,23.76363629]
[1646570726923,114.7,87.059,86.993,23.76363629]
[1646570727124,114.7,87.057,86.993,23.76363629]
[1646570727527,114.7,87.057,86.981,2.83613526]
[1646570727528,0.48217613,87.054,86.981,2.83613526]
[1646570727728,0.48217613,87.051,86.972,23.17101202]
[1646570727929,114.7,87.049,86.958,17.6477]
[1646570728225,0.48217613,87.038,86.958,17.6477]
[1646570728427,5.745,87.037,86.976,2.83613526]
[1646570728627,5.745,87.048,86.976,2.83613526]
[1646570728827,5.745,87.058,86.976,2.83613526]
[1646570729127,5.745,87.058,87.008,2.83613526]
[1646570729428,23.6748,87.059,87.008,2.83613526]
[1646570730636,5.744,87.058,87.008,2.83613526]
[1646570731027,23.6748,87.059,87.008,2.83613526]
[1646570731530,23.6748,87.059,87.01,17.2438]
[1646570731727,54.56528056,87.066,87.01,17.2438]
[1646570731927,54.56528056,87.066,87.011,2.83613526]
[1646570734932,5.744,87.065,87.011,2.83613526]
[1646570735132,5.744,87.065,87.0,17.2441]
[1646570735330,54.56528056,87.066,87.0,17.2441]
[1646570735852,54.56528056,87.066,86.985,17.2105]
[1646570736054,54.56528056,87.066,86.979,14.45832374]
[1646570736352,0.5181715,87.064,86.93,114.7]
[1646570736551,5.27753452,87.062,86.93,114.7]
[1646570736751,0.5181715,87.06,86.93,114.7]
[1646570736950,0.5181715,87.06,86.925,23.0946]
[1646570736951,69.3281715,87.058,86.926,23.2695]
[1646570737152,0.5181715,87.049,86.959,56.88696008]
[1646570737350,0.5181715,87.047,86.959,56.88696008]
[1646570737551,0.5181715,87.045,86.959,56.88696008]
[1646570737752,5.745,87.044,86.959,56.88696008]
[1646570738154,5.745,87.047,86.959,56.88696008]
[1646570738353,0.5181715,87.047,86.959,56.88696008]
[1646570738552,0.5181715,87.045,86.959,56.88696008]
[1646570738752,17.2567,87.04,86.96,17.2537]
[1646570738955,51.65068287,87.038,86.96,17.2537]
[1646570739154,5.745,87.037,86.96,17.2537]
[1646570739356,51.65068287,87.038,86.96,17.2537]
[1646570739757,114.7,87.037,86.96,17.2537]
[1646570739957,0.5181715,87.036,86.96,17.2537]
[1646570740155,114.7,87.037,86.96,17.2537]
[1646570740755,5.745,87.036,86.96,114.7]
[1646570740958,51.65068287,87.038,86.96,114.7]
[1646570741956,24.9828,87.049,86.96,114.7]
[1646570742157,24.9828,87.049,86.97,57.4875]
[1646570742459,5.745,87.068,86.986,114.7]
[1646570742657,5.744,87.071,87.006,24.84904963]
[1646570742858,54.88569246,87.092,87.009,56.95443733]
[1646570743063,5.743,87.091,87.01,114.7]
[1646570743260,5.743,87.091,87.01,182.13012832]
[1646570743660,5.743,87.091,87.011,24.84904963]
[1646570744260,114.7,87.09,87.011,24.84904963]
[1646570744461,5.743,87.089,87.009,56.95443733]
[1646570744667,121.50246047,87.088,87.007,0.1]
[1646570744863,0.5181715,87.085,87.007,0.1]
[1646570745062,0.5181715,87.082,87.007,0.1]
[1646570745361,131.9465,87.08,87.007,0.1]
[1646570745563,0.52062699,87.077,87.007,0.1]
[1646570745766,3.10592514,87.071,87.007,0.1]
[1646570745966,0.52062699,87.068,87.007,0.1]
[1646570746166,114.7,87.064,87.007,0.1]
[1646570746366,114.7,87.062,87.007,0.1]
[1646570746567,131.9521,87.06,87.007,0.1]
[1646570746767,0.52062699,87.057,87.007,0.1]
[1646570746967,5.745,87.056,87.007,0.1]
[1646570747167,114.7,87.058,87.007,0.1]
[1646570747467,5.745,87.064,87.007,0.1]
[1646570747668,120.98595049,87.063,87.007,0.1]
[1646570747867,114.7,87.061,87.008,2.83613526]
[1646570748067,114.7,87.059,87.008,2.83613526]
[1646570748267,114.7,87.057,87.008,2.83613526]
[1646570748470,114.7,87.055,87.008,2.83613526]
[1646570748867,12.03000855,87.056,87.008,2.83613526]
[1646570748868,114.7,87.053,87.008,2.83613526]
[1646570749469,0.52062699,87.052,87.008,2.83613526]
[1646570749669,69.33062699,87.048,87.007,0.1]
[1646570749868,0.52062699,87.041,87.007,0.1]
[1646570750070,0.52062699,87.038,87.007,0.1]
[1646570750270,0.52062699,87.035,87.007,0.1]
[1646570750470,114.7,87.033,87.007,0.1]
[1646570750670,114.7,87.031,87.007,0.1]
[1646570750870,114.7,87.029,87.007,0.1]
[1646570751075,0.08849496,87.006,86.944,49.7034442]
[1646570751472,0.08849496,87.006,86.945,27.68518489]
[1646570751875,0.08849496,87.006,86.946,53.02286358]
[1646570752272,0.08849496,87.006,86.947,53.02286358]
[1646570752473,0.08849496,87.006,86.95,17.2559]
[1646570752873,0.08849496,87.006,86.951,24.84904963]
[1646570753173,0.08849496,87.006,86.951,27.68518489]
[1646570753373,0.08849496,87.006,86.952,2.83613526]
[1646570753774,0.08849496,87.006,86.953,24.84904963]
[1646570754274,0.08849496,87.006,86.954,2.83613526]
[1646570754478,0.08849496,87.006,86.96,17.2537]
[1646570754876,0.08849496,87.006,86.961,27.68518489]
[1646570755277,0.08849496,87.006,86.962,27.68518489]
[1646570755676,0.08849496,87.006,86.963,27.68518489]
[1646570756078,0.08849496,87.006,86.964,27.68518489]
[1646570756277,0.08849496,87.006,86.971,57.14662061]
[1646570756676,0.08849496,87.006,86.972,2.83613526]
[1646570759580,0.08849496,87.006,86.963,2.83613526]
[1646570760983,0.08849496,87.006,86.952,24.84904963]
[1646570761280,0.08849496,87.006,86.946,2.83613526]
[1646570762784,0.08849496,87.006,86.947,24.84904963]
[1646570763182,0.08849496,87.006,86.948,2.83613526]
[1646570763482,0.08849496,87.006,86.949,24.84904963]
[1646570763882,0.08849496,87.006,86.95,134.79163526]
[1646570764185,0.08849496,87.006,86.951,24.84904963]
[1646570764383,0.08849496,87.006,86.951,68.33918732]
[1646570764682,0.08849496,87.006,86.952,53.02286358]
[1646570765084,0.08849496,87.006,86.953,27.68518489]
[1646570765483,0.08849496,87.006,86.954,27.68518489]
[1646570765782,0.08849496,87.006,86.955,24.84904963]
[1646570765984,0.08849496,87.006,86.955,27.68518489]
[1646570766184,0.08849496,87.006,86.96,17.2519]
[1646570766583,0.08849496,87.006,86.961,2.83613526]
[1646570767985,0.08849496,87.006,86.956,24.84904963]
[1646570768383,0.08849496,87.006,86.957,2.83613526]
[1646570769586,0.08849496,87.006,86.96,17.254]
[1646570770588,0.08849496,87.006,86.96,20.09013526]
[1646570772688,5.748,87.005,86.96,20.09013526]
[1646570773098,114.7,87.004,86.96,2.83613526]
[1646570773290,114.7,87.004,86.947,2.83613526]
[1646570773492,7.30924917,87.003,86.931,2.83613526]
[1646570773691,1.56124917,87.002,86.931,2.83613526]
[1646570773890,0.08849496,87.006,86.931,2.83613526]
[1646570773891,1.56124917,86.999,86.931,2.83613526]
[1646570774394,1.56124917,86.988,86.932,61.01599978]
[1646570774792,1.56124917,86.988,86.933,2.83613526]
[1646570774993,1.56124917,86.989,86.933,2.83613526]
[1646570775190,1.56124917,86.983,86.933,2.83613526]
[1646570775591,1.56124917,86.983,86.934,24.84904963]
[1646570775991,1.56124917,86.983,86.935,2.83613526]
[1646570776192,1.56124917,86.987,86.94,17.2578]
[1646570776592,1.56124917,86.987,86.941,2.83613526]
[1646570777192,1.56124917,86.988,86.941,2.83613526]
[1646570778196,1.56124917,86.985,86.941,2.83613526]
[1646570779401,1.56124917,86.987,86.941,2.83613526]
[1646570781100,1.56124917,86.988,86.941,2.83613526]
[1646570781800,1.56124917,86.989,86.941,2.83613526]
[1646570782401,1.56124917,86.987,86.941,2.83613526]
[1646570782801,1.56124917,86.988,86.941,2.83613526]
[1646570784104,5.749,86.987,86.941,2.83613526]
[1646570784319,5.749,86.987,86.941,27.68518489]
[1646570784521,5.749,86.99,86.941,27.68518489]
[1646570784722,5.749,86.99,86.942,2.83613526]
[1646570784920,7.31024917,86.99,86.942,2.83613526]
[1646570785521,116.26124917,86.989,86.932,61.01599978]
[1646570785721,5.749,86.988,86.932,61.01599978]
[1646570785921,1.56124917,86.984,86.93,16.9564]
[1646570786225,1.56124917,86.97,86.914,2.83613526]
[1646570786422,1.56124917,86.961,86.912,24.84904963]
[1646570786624,1.56124917,86.954,86.876,17.3326]
[1646570786821,1.56124917,86.947,86.876,17.3326]
[1646570787023,56.32500855,86.946,86.877,65.65441598]
[1646570787224,1.56124917,86.945,86.877,65.65441598]
[1646570787523,56.32500855,86.946,86.878,2.83613526]
[1646570787824,7.31324917,86.945,86.878,2.83613526]
[1646570788022,5.752,86.945,86.88,17.2699]
[1646570788222,1.56124917,86.942,86.88,17.2699]
[1646570788423,5.753,86.941,86.881,50.57532809]
[1646570788824,5.753,86.941,86.882,2.83613526]
[1646570789424,5.753,86.941,86.882,2.33613526]
[1646570789625,5.753,86.941,86.883,2.83613526]
[1646570789828,56.32500855,86.946,86.883,2.83613526]
[1646570789829,5.752,86.945,86.883,2.83613526]
[1646570790127,114.7,86.944,86.882,2.83613526]
[1646570790324,114.7,86.942,86.882,2.83613526]
[1646570790526,114.7,86.94,86.882,2.83613526]
[1646570790726,114.7,86.938,86.882,2.83613526]
[1646570790927,114.7,86.936,86.882,2.83613526]
[1646570791127,114.7,86.934,86.882,2.83613526]
[1646570791330,114.7,86.932,86.882,2.83613526]
[1646570791528,114.7,86.93,86.87,17.2723]
[1646570791728,120.453,86.929,86.87,17.2723]
[1646570792228,120.453,86.929,86.871,27.06648273]
[1646570792429,120.453,86.929,86.872,56.75851376]
[1646570792627,120.453,86.929,86.872,59.59464902]
[1646570793128,120.453,86.929,86.873,2.83613526]
[1646570800438,114.7,86.919,86.85,2.83613526]
[1646570800637,114.7,86.917,86.85,2.83613526]
[1646570800840,4.51498112,86.912,86.85,2.83613526]
[1646570801037,0.49265039,86.909,86.84,2.83613526]
[1646570801236,0.49265039,86.909,86.83,24.76568199]
[1646570801237,114.7,86.907,86.83,3.41175056]
[1646570801439,86.092,86.9,86.831,51.86247726]
[1646570801637,114.7,86.893,86.831,51.86247726]
[1646570801837,114.7,86.891,86.831,51.86247726]
[1646570802039,114.7,86.889,86.831,51.86247726]
[1646570802240,114.7,86.887,86.831,51.86247726]
[1646570802438,114.7,86.885,86.831,51.86247726]
[1646570802639,114.7,86.883,86.832,24.23034747]
[1646570803037,5.69788324,86.882,86.831,51.86247726]
[1646570803238,51.58991062,86.879,86.831,51.86247726]
[1646570803537,114.7,86.869,86.83,0.5756153]
[1646570803940,114.7,86.867,86.83,0.5756153]
[1646570804138,114.7,86.865,86.83,0.5756153]
[1646570804438,0.42771323,86.862,86.83,0.5756153]
[1646570804639,131.9897,86.86,86.78,17.2907]
[1646570804842,131.9897,86.86,86.77,169.7251]
[1646570804843,114.7,86.858,86.77,112.1]
[1646570805039,114.7,86.856,86.78,2.83613526]
[1646570805241,138.6013,86.856,86.777,27.06648273]
[1646570805438,114.7,86.854,86.777,27.06648273]
[1646570805638,114.7,86.852,86.778,91.64590406]
[1646570805839,114.7,86.85,86.778,91.64590406]
[1646570806039,114.7,86.848,86.779,2.83613526]
[1646570806239,61.33735415,86.851,86.779,2.83613526]
[1646570806240,114.7,86.846,86.779,27.06648273]
[1646570806440,114.7,86.844,86.78,24.23034747]
[1646570806641,114.7,86.842,86.78,23.73034747]
[1646570806842,114.7,86.84,86.779,2.83613526]
[1646570807241,114.7,86.838,86.779,2.83613526]
[1646570807748,114.7,86.836,86.775,46.55903396]
[1646570807941,114.7,86.834,86.775,46.55903396]
[1646570808142,114.7,86.834,86.776,2.83613526]
[1646570808843,5.76,86.855,86.777,24.19006669]
[1646570809042,1.56124917,86.866,86.777,24.19006669]
[1646570809242,114.7,86.87,86.78,17.291]
[1646570809449,114.7,86.87,86.78,24.861]
[1646570809642,114.7,86.87,86.781,42.21488595]
[1646570809842,61.73790125,86.858,86.781,66.57523342]
[1646570810042,23.0223,86.875,86.782,66.57523342]
[1646570810248,1.56124917,86.886,86.8,17.2846]
[1646570810447,1.56124917,86.901,86.801,114.7]
[1646570810745,5.756,86.9,86.801,184.11442459]
[1646570810945,59.60230666,86.899,86.802,104.42847707]
[1646570811146,5.757,86.898,86.802,131.6249598]
[1646570811347,5.757,86.898,86.82,17.2759]
[1646570811548,59.60230666,86.899,86.82,17.2759]
[1646570811748,114.7,86.898,86.821,43.1443579]
[1646570811947,114.7,86.898,86.821,18.78401043]
[1646570812347,116.26124917,86.898,86.821,18.78401043]
[1646570812851,1.56124917,86.897,86.822,15.94787517]
[1646570813249,1.56124917,86.897,86.831,55.85598077]
[1646570813850,114.7,86.898,86.831,55.85598077]
[1646570814755,114.7,86.898,86.84,17.2798]